fUST/lending_fUST_20251004
["ID","MTS","AMOUNT","RATE_DAILY","PERIOD"]
[389063327,1759572641381,-500.0,0.00020986,2]
[389063329,1759572641390,-500.0,0.00020986,2]
[389063331,1759572641398,-500.0,0.00020986,2]
[389063332,1759572641408,-500.0,0.00020986,2]
[389063334,1759572641417,-1399.58,0.00020986,2]
[389063336,1759572641425,-1910.18,0.00020986,2]
[389063338,1759572641436,-500.0,0.00020986,2]
[389063340,1759572641446,-500.0,0.00020986,2]
[389063342,1759572641455,-500.0,0.00020986,2]
[389063344,1759572641464,-500.0,0.00020986,2]
[389063346,1759572641475,-1261.65,0.00020986,2]
[389063348,1759572641484,-373.44126908,0.00020986,2]
[389063350,1759572641493,-500.0,0.00020986,2]
[389063352,1759572641502,-589.57,0.00020986,2]
[389063354,1759572641513,-1068.77,0.00020986,2]
[389063356,1759572641522,-949.14,0.00020986,2]
[389063358,1759572641532,-500.0,0.00020986,2]
[389063360,1759572641541,-4250.39,0.00020986,2]
[389063362,1759572641550,-775.73,0.00020986,2]
[389063364,1759572641559,-500.0,0.00020986,2]
[389063366,1759572641569,-500.0,0.00020986,2]
[389063368,1759572641578,-500.0,0.00020986,2]
[389063370,1759572641587,-1091.1,0.00020986,2]
[389063372,1759572641596,-1000.0,0.00020986,2]
[389063374,1759572641605,-500.0,0.00020986,2]
[389063376,1759572641614,-500.0,0.00020986,2]
[389063378,1759572641624,-500.0,0.00020986,2]
[389063380,1759572641633,-500.0,0.00020986,2]
[389063382,1759572641643,-2466.67,0.00020986,2]
[389063384,1759572641653,-500.0,0.00020986,2]
[389063386,1759572641662,-500.0,0.00020986,2]
[389063388,1759572641672,-1140.89,0.00020986,2]
[389063390,1759572641681,-500.0,0.00020986,2]
[389063392,1759572641690,-919.72,0.00020986,2]
[389063394,1759572641699,-500.0,0.00020986,2]
[389063396,1759572641708,-500.0,0.00020986,2]
[389063398,1759572641717,-1403.14,0.00020986,2]
[389063400,1759572641726,-500.0,0.00020986,2]
[389063402,1759572641735,-566.53909547,0.00020986,2]
[389063404,1759572641744,-500.0,0.00020986,2]
[389063406,1759572641754,-209.81979494,0.00020986,2]
[389063408,1759572641763,-500.0,0.00020986,2]
[389063410,1759572641772,-481.8906187,0.00020986,2]
[389063412,1759572641782,-500.0,0.00020986,2]
[389063414,1759572641791,-500.0,0.00020986,2]
[389063416,1759572641800,-500.0,0.00020986,2]
[389063418,1759572641809,-500.0,0.00020986,2]
[389063420,1759572641818,-500.0,0.00020986,2]
[389063422,1759572641827,-500.0,0.00020986,2]
[389063424,1759572641837,-500.0,0.00020986,2]
[389063432,1759572641891,-500.0,0.00020986,2]
[389063434,1759572641901,-484.46115289,0.00020986,2]
[389063436,1759572641910,-500.0,0.00020986,2]
[389063438,1759572641920,-188.53879204,0.00020986,2]
[389063440,1759572641929,-151.0,0.00020986,2]
[389063441,1759572641938,-500.0,0.00020986,2]
[389063442,1759572641947,-154.390659,0.00020986,2]
[389063443,1759572641957,-1138.61,0.00020986,2]
[389063444,1759572641966,-538.4,0.00020986,2]
[389063445,1759572641975,-4090.19,0.00020986,2]
[389063446,1759572641984,-500.0,0.00020986,2]
[389063447,1759572641992,-151.0,0.00020986,2]
[389063448,1759572642002,-246.005085,0.00020986,2]
[389063449,1759572642011,-151.0,0.00020986,2]
[389063450,1759572642020,-534.1969581,0.00020986,2]
[389063451,1759572642029,-500.0,0.00020986,2]
[389063452,1759572642038,-500.0,0.00020986,2]
[389063453,1759572642046,-462.43779933,0.00020986,2]
[389063454,1759572642055,-500.0,0.00020986,2]
[389063455,1759572642063,-1352.8,0.00020986,2]
[389063456,1759572642072,-151.0,0.00020986,2]
[389063457,1759572642081,-500.0,0.00020987,2]
[389063458,1759572642089,-500.0,0.00020987,2]
[389063459,1759572642098,-500.0,0.00020987,2]
[389063460,1759572642107,-463.65531702,0.00020987,2]
[389063461,1759572642115,-3478.18,0.00020987,2]
[389063462,1759572642124,-2019.52,0.00020987,2]
[389063463,1759572642133,-500.0,0.00020987,2]
[389063464,1759572642142,-500.0,0.00020987,2]
[389063465,1759572642151,-1593.48,0.00020987,2]
[389063466,1759572642160,-725.97,0.00020987,2]
[389063467,1759572642170,-500.0,0.00020987,2]
[389063469,1759572642178,-500.0,0.00020987,2]
[389063471,1759572642187,-2985.77,0.00020987,2]
[389063473,1759572642196,-1203.93,0.00020987,2]
[389063475,1759572642205,-632.63,0.00020987,2]
[389063477,1759572642215,-747.58,0.00020987,2]
[389063479,1759572642223,-500.0,0.00020987,2]
[389063481,1759572642232,-500.0,0.00020987,2]
[389063483,1759572642241,-500.0,0.00020987,2]
[389063485,1759572642250,-500.0,0.00020987,2]
[389063487,1759572642259,-500.0,0.00020987,2]
[389063489,1759572642268,-1018.36,0.00020987,2]
[389063491,1759572642277,-500.0,0.00020987,2]
[389063493,1759572642285,-500.0,0.00020987,2]
[389063495,1759572642294,-500.0,0.00020987,2]
[389063496,1759572642303,-1075.44,0.00020987,2]
[389063498,1759572642311,-3445.28,0.00020987,2]
[389063500,1759572642320,-500.0,0.00020987,2]
[389063502,1759572642330,-1051.5,0.00020987,2]
[389063504,1759572642338,-500.0,0.00020987,2]
[389063506,1759572642348,-500.0,0.00020987,2]
[389063509,1759572642357,-815.55,0.00020987,2]
[389063510,1759572642367,-500.0,0.00020987,2]
[389063512,1759572642376,-500.0,0.00020987,2]
[389063514,1759572642385,-500.0,0.00020987,2]
[389063516,1759572642394,-500.0,0.00020987,2]
[389063518,1759572642403,-1025.98,0.00020987,2]
[389063520,1759572642412,-500.0,0.00020987,2]
[389063522,1759572642421,-2452.06,0.00020987,2]
[389063524,1759572642430,-500.0,0.00020987,2]
[389063526,1759572642444,-500.0,0.00020987,2]
[389063528,1759572642453,-500.0,0.00020987,2]
[389063530,1759572642462,-746.24,0.00020987,2]
[389063532,1759572642471,-500.0,0.00020987,2]
[389063534,1759572642482,-500.0,0.00020987,2]
[389063536,1759572642491,-624.67,0.00020987,2]
[389063538,1759572642500,-584.37,0.00020987,2]
[389063540,1759572642511,-500.0,0.00020987,2]
[389063542,1759572642521,-500.0,0.00020987,2]
[389063544,1759572642530,-500.0,0.00020987,2]
[389063546,1759572642539,-674.66,0.00020987,2]
[389063548,1759572642548,-500.0,0.00020987,2]
[389063550,1759572642557,-811.6,0.00020987,2]
[389063552,1759572642566,-500.0,0.00020987,2]
[389063554,1759572642575,-3420.0,0.00020987,2]
[389063556,1759572642584,-891.22,0.00020987,2]
[389063558,1759572642593,-500.0,0.00020987,2]
[389063561,1759572642603,-500.0,0.00020987,2]
[389063564,1759572642612,-500.0,0.00020987,2]
[389063566,1759572642621,-500.0,0.00020987,2]
[389063570,1759572642632,-500.0,0.00020987,2]
[389063572,1759572642641,-500.0,0.00020987,2]
[389063575,1759572642651,-500.0,0.00020987,2]
[389063578,1759572642660,-9384.29,0.00020987,2]
[389063580,1759572642670,-500.0,0.00020987,2]
[389063582,1759572642679,-500.0,0.00020987,2]
[389063584,1759572642689,-485.50639329,0.00020987,2]
[389063586,1759572642698,-500.0,0.00020987,2]
[389063588,1759572642707,-500.0,0.00020987,2]
[389063590,1759572642717,-500.0,0.00020987,2]
[389063592,1759572642726,-6283.78,0.00020987,2]
[389063595,1759572642735,-500.0,0.00020987,2]
[389063597,1759572642744,-500.0,0.00020987,2]
[389063599,1759572642753,-799.28,0.00020987,2]
[389063601,1759572642762,-523.99,0.00020987,2]
[389063603,1759572642771,-500.0,0.00020987,2]
[389063605,1759572642779,-1662.56,0.00020987,2]
[389063607,1759572642788,-1662.56,0.00020987,2]
[389063609,1759572642797,-2624.11,0.00020987,2]
[389063611,1759572642806,-500.0,0.00020987,2]
[389063613,1759572642815,-151.0,0.00020987,2]
[389063615,1759572642824,-152.12701,0.00020987,2]
[389063617,1759572642833,-151.0,0.00020987,2]
[389063619,1759572642842,-151.0,0.00020987,2]
[389063621,1759572642851,-151.0,0.00020987,2]
[389063623,1759572642860,-151.0,0.00020987,2]
[389063624,1759572642869,-151.0,0.00020987,2]
[389063626,1759572642878,-151.0,0.00020987,2]
[389063629,1759572642887,-151.0,0.00020987,2]
[389063631,1759572642896,-151.0,0.00020987,2]
[389063632,1759572642905,-151.0,0.00020987,2]
[389063635,1759572642914,-151.0,0.00020987,2]
[389063636,1759572642923,-151.0,0.00020987,2]
[389063638,1759572642932,-151.0,0.00020987,2]
[389063640,1759572642942,-151.0,0.00020987,2]
[389063642,1759572642950,-151.0,0.00020987,2]
[389063644,1759572642959,-151.0,0.00020987,2]
[389063646,1759572642968,-151.0,0.00020987,2]
[389063648,1759572642977,-151.0,0.00020987,2]
[389063650,1759572642986,-152.500452,0.00020987,2]
[389063652,1759572642995,-151.0,0.00020987,2]
[389063654,1759572643003,-151.0,0.00020987,2]
[389063656,1759572643012,-151.0,0.00020987,2]
[389063658,1759572643021,-151.0,0.00020987,2]
[389063660,1759572643032,-500.0,0.00020987,2]
[389063662,1759572643042,-619.66,0.00020988,2]
[389063664,1759572643051,-619.66,0.00020988,2]
[389063666,1759572643060,-619.66,0.00020988,2]
[389063668,1759572643069,-500.0,0.00020988,2]
[389063670,1759572643078,-500.0,0.00020988,2]
[389063672,1759572643087,-500.0,0.00020988,2]
[389063674,1759572643097,-500.0,0.00020988,2]
[389063676,1759572643106,-500.0,0.00020988,2]
[389063678,1759572643115,-500.0,0.00020988,2]
[389063680,1759572643124,-500.0,0.00020988,2]
[389063682,1759572643134,-151.0,0.00020988,2]
[389063684,1759572643143,-151.0,0.00020988,2]
[389063686,1759572643152,-151.0,0.00020988,2]
[389063688,1759572643161,-259.222768,0.00020988,2]
[389063690,1759572643170,-151.0,0.00020988,2]
[389063692,1759572643179,-151.0,0.00020988,2]
[389063694,1759572643189,-1316.66,0.00020988,2]
[389063696,1759572643198,-151.0,0.00020988,2]
[389063698,1759572643207,-500.0,0.00020988,2]
[389063700,1759572643217,-500.0,0.00020988,2]
[389063702,1759572643227,-3362.56,0.00020988,2]
[389063704,1759572643236,-500.0,0.00020988,2]
[389063706,1759572643245,-500.0,0.00020988,2]
[389063708,1759572643254,-500.0,0.00020988,2]
[389063710,1759572643263,-586.21,0.00020988,2]
[389063712,1759572643272,-500.0,0.00020988,2]
[389063714,1759572643281,-500.0,0.00020988,2]
[389063716,1759572643290,-500.0,0.00020988,2]
[389063718,1759572643299,-500.0,0.00020988,2]
[389063720,1759572643308,-151.0,0.00020988,2]
[389063722,1759572643318,-151.0,0.00020988,2]
[389063724,1759572643327,-2340.26,0.00020988,2]
[389063726,1759572643336,-151.0,0.00020988,2]
[389063728,1759572643345,-500.0,0.00020989,2]
[389063730,1759572643354,-500.0,0.00020989,2]
[389063732,1759572643364,-500.0,0.00020989,2]
[389063734,1759572643374,-500.0,0.00020989,2]
[389063736,1759572643383,-590.31,0.00020989,2]
[389063738,1759572643392,-620.75,0.00020989,2]
[389063740,1759572643402,-500.0,0.00020989,2]
[389063742,1759572643411,-465.43402694,0.00020989,2]
[389063744,1759572643422,-500.0,0.00020989,2]
[389063746,1759572643431,-557.75,0.00020989,2]
[389063748,1759572643445,-500.0,0.00020989,2]
[389063750,1759572643455,-500.0,0.00020989,2]
[389063752,1759572643464,-500.0,0.00020989,2]
[389063754,1759572643473,-500.0,0.00020989,2]
[389063756,1759572643483,-500.0,0.00020989,2]
[389063758,1759572643493,-622.67,0.00020989,2]
[389063760,1759572643502,-384.72011386,0.00020989,2]
[389063762,1759572643512,-1365.87,0.00020989,2]
[389063764,1759572643521,-500.0,0.00020989,2]
[389063766,1759572643531,-500.0,0.00020989,2]
[389063768,1759572643541,-500.0,0.00020989,2]
[389063770,1759572643550,-500.0,0.00020989,2]
[389063772,1759572643559,-447.22815829,0.00020989,2]
[389063774,1759572643568,-500.0,0.00020989,2]
[389063776,1759572643577,-500.0,0.00020989,2]
[389063777,1759572643586,-500.0,0.00020989,2]
[389063780,1759572643595,-500.0,0.00020989,2]
[389063782,1759572643605,-500.0,0.00020989,2]
[389063784,1759572643614,-500.0,0.00020989,2]
[389063785,1759572643623,-508.48,0.00020989,2]
[389063788,1759572643633,-1896.65,0.00020989,2]
[389063790,1759572643642,-500.0,0.00020989,2]
[389063792,1759572643651,-616.32691521,0.00020989,2]
[389063793,1759572643660,-500.0,0.00020989,2]
[389063795,1759572643671,-500.0,0.00020989,2]
[389063797,1759572643680,-500.0,0.00020989,2]
[389063799,1759572643689,-500.0,0.00020989,2]
[389063801,1759572643698,-993.17,0.00020989,2]
[389063803,1759572643707,-500.0,0.00020989,2]
[389063805,1759572643716,-500.0,0.00020989,2]
[389063807,1759572643725,-500.0,0.00020989,2]
[389063809,1759572643734,-500.0,0.00020989,2]
[389063811,1759572643743,-519.08,0.00020989,2]
[389063813,1759572643752,-500.0,0.00020989,2]
[389063815,1759572643762,-500.0,0.00020989,2]
[389063817,1759572643771,-500.0,0.00020989,2]
[389063819,1759572643780,-500.0,0.00020989,2]
[389063821,1759572643789,-500.0,0.00020989,2]
[389063823,1759572643798,-484.01269547,0.00020989,2]
[389063825,1759572643807,-500.0,0.00020989,2]
[389063827,1759572643817,-500.0,0.00020989,2]
[389063829,1759572643826,-500.0,0.00020989,2]
[389063831,1759572643835,-512.21,0.00020989,2]
[389063833,1759572643843,-550.89,0.00020989,2]
[389063835,1759572643852,-500.0,0.00020989,2]
[389063837,1759572643862,-500.0,0.00020989,2]
[389063839,1759572643871,-541.89,0.00020989,2]
[389063841,1759572643880,-500.0,0.00020989,2]
[389063843,1759572643889,-500.0,0.00020989,2]
[389063845,1759572643898,-500.0,0.00020989,2]
[389063847,1759572643907,-1000.0,0.00020989,2]
[389063849,1759572643915,-500.0,0.00020989,2]
[389063851,1759572643924,-500.0,0.00020989,2]
[389063853,1759572643933,-500.0,0.00020989,2]
[389063855,1759572643942,-500.0,0.00020989,2]
[389063857,1759572643951,-500.0,0.00020989,2]
[389063859,1759572643960,-500.0,0.00020989,2]
[389063861,1759572643969,-500.0,0.00020989,2]
[389063863,1759572643978,-500.0,0.00020989,2]
[389063865,1759572643987,-500.0,0.00020989,2]
[389063867,1759572643996,-1041.47,0.00020989,2]
[389063869,1759572644005,-500.0,0.00020989,2]
[389063871,1759572644014,-500.0,0.00020989,2]
[389063873,1759572644023,-500.0,0.00020989,2]
[389063875,1759572644032,-974.36,0.00020989,2]
[389063877,1759572644041,-500.0,0.00020989,2]
[389063879,1759572644050,-500.0,0.00020989,2]
[389063881,1759572644060,-500.0,0.00020989,2]
[389063883,1759572644069,-500.0,0.00020989,2]
[389063885,1759572644078,-701.66,0.00020989,2]
[389063887,1759572644087,-500.0,0.00020989,2]
[389063889,1759572644095,-383.70124898,0.00020989,2]
[389063891,1759572644104,-500.0,0.00020989,2]
[389063893,1759572644113,-500.0,0.00020989,2]
[389063895,1759572644122,-500.0,0.00020989,2]
[389063897,1759572644131,-500.0,0.00020989,2]
[389063899,1759572644140,-500.0,0.00020989,2]
[389063901,1759572644149,-500.0,0.00020989,2]
[389063903,1759572644158,-500.0,0.00020989,2]
[389063905,1759572644167,-500.0,0.00020989,2]
[389063907,1759572644175,-500.0,0.00020989,2]
[389063909,1759572644184,-518.15,0.00020989,2]
[389063911,1759572644193,-500.0,0.00020989,2]
[389063913,1759572644202,-774.69,0.00020989,2]
[389063915,1759572644210,-500.0,0.00020989,2]
[389063917,1759572644220,-500.0,0.00020989,2]
[389063919,1759572644229,-500.0,0.00020989,2]
[389063921,1759572644237,-500.0,0.00020989,2]
[389063923,1759572644246,-500.0,0.00020989,2]
[389063925,1759572644255,-500.0,0.00020989,2]
[389063927,1759572644264,-960.67,0.00020989,2]
[389063929,1759572644272,-500.0,0.00020989,2]
[389063930,1759572644281,-500.0,0.00020989,2]
[389063932,1759572644290,-500.0,0.00020989,2]
[389063934,1759572644299,-595.18137705,0.00020989,2]
[389063936,1759572644307,-500.0,0.00020989,2]
[389063938,1759572644316,-500.0,0.00020989,2]
[389063940,1759572644325,-500.0,0.00020989,2]
[389063942,1759572644333,-500.0,0.00020989,2]
[389063944,1759572644342,-500.0,0.00020989,2]
[389063946,1759572644351,-500.0,0.00020989,2]
[389063948,1759572644360,-500.0,0.00020989,2]
[389063950,1759572644369,-486.01702292,0.00020989,2]
[389063952,1759572644378,-500.0,0.00020989,2]
[389063954,1759572644387,-500.0,0.00020989,2]
[389063955,1759572644396,-495.78442434,0.00020989,2]
[389063956,1759572644405,-664.67,0.00020989,2]
[389063957,1759572644414,-500.0,0.00020989,2]
[389063958,1759572644423,-1528.06,0.00020989,2]
[389063959,1759572644431,-500.0,0.00020989,2]
[389063960,1759572644442,-489.61416106,0.00020989,2]
[389063961,1759572644450,-500.0,0.00020989,2]
[389063963,1759572644459,-500.0,0.00020989,2]
[389063965,1759572644471,-500.0,0.00020989,2]
[389063967,1759572644480,-500.0,0.00020989,2]
[389063969,1759572644489,-500.0,0.00020989,2]
[389063971,1759572644499,-500.0,0.00020989,2]
[389063973,1759572644508,-500.0,0.00020989,2]
[389063975,1759572644517,-151.0,0.00020989,2]
[389063977,1759572644526,-500.0,0.00020989,2]
[389063979,1759572644535,-151.0,0.00020989,2]
[389063981,1759572644544,-500.0,0.00020989,2]
[389063983,1759572644553,-510.91,0.00020989,2]
[389063985,1759572644562,-151.0,0.00020989,2]
[389063987,1759572644571,-151.0,0.00020989,2]
[389063989,1759572644580,-232.160792,0.00020989,2]
[389063990,1759572644588,-151.0,0.00020989,2]
[389063992,1759572644597,-151.0,0.00020989,2]
[389063994,1759572644606,-151.0,0.00020989,2]
[389063996,1759572644615,-151.0,0.00020989,2]
[389063998,1759572644623,-151.0,0.00020989,2]
[389064000,1759572644632,-500.0,0.00020989,2]
[389064002,1759572644642,-500.0,0.00020989,2]
[389064004,1759572644651,-500.0,0.00020989,2]
[389064006,1759572644660,-500.0,0.00020989,2]
[389064008,1759572644670,-659.78,0.00020989,2]
[389064010,1759572644680,-1662.56,0.00020989,2]
[389064012,1759572644689,-1662.56,0.00020989,2]
[389064015,1759572644698,-1662.56,0.00020989,2]
[389064017,1759572644707,-151.0,0.00020989,2]
[389064018,1759572644717,-151.0,0.00020989,2]
[389064021,1759572644726,-151.0,0.00020989,2]
[389064023,1759572644735,-151.0,0.00020989,2]
[389064024,1759572644751,-151.0,0.00020989,2]
[389064027,1759572644761,-278.246454,0.00020989,2]
[389064029,1759572644770,-151.0,0.00020989,2]
[389064031,1759572644779,-151.0,0.00020989,2]
[389064032,1759572644789,-151.0,0.00020989,2]
[389064035,1759572644798,-151.0,0.00020989,2]
[389064037,1759572644807,-151.0,0.00020989,2]
[389064038,1759572644816,-151.0,0.00020989,2]
[389064040,1759572644826,-196.979139,0.00020989,2]
[389064043,1759572644835,-151.0,0.00020989,2]
[389064045,1759572644845,-151.0,0.00020989,2]
[389064046,1759572644854,-151.0,0.00020989,2]
[389064049,1759572644863,-151.0,0.00020989,2]
[389064051,1759572644874,-151.0,0.00020989,2]
[389064053,1759572644883,-204.627372,0.00020989,2]
[389064055,1759572644893,-271.13644734,0.00021,6]
[389064057,1759572644902,-619.66,0.00021056,2]
[389064059,1759572644912,-500.0,0.00021056,2]
[389064061,1759572644922,-500.0,0.00021056,2]
[389064063,1759572644931,-500.0,0.00021056,2]
[389064065,1759572644940,-500.0,0.00021056,2]
[389064067,1759572644950,-1763.7784334,0.00021057,2]
[389064069,1759572644959,-15267.2438514,0.00021057,2]
[389064071,1759572644968,-3110.7401521,0.00021057,2]
[389064073,1759572644978,-4963.6190434,0.00021057,2]
[389064075,1759572644988,-151.0,0.00021057,2]
[389064077,1759572644997,-151.0,0.00021057,2]
[389064079,1759572645006,-151.0,0.00021057,2]
[389064082,1759572645016,-169.07232,0.00021057,2]
[389064084,1759572645025,-151.0,0.00021057,2]
[389064086,1759572645035,-151.0,0.00021057,2]
[389064088,1759572645044,-151.0,0.00021057,2]
[389064090,1759572645053,-305.44631033,0.0002111,2]
[389064092,1759572645063,-318.3074234,0.00021225,2]
[389064094,1759572645072,-500.0,0.00021246,2]
[389064096,1759572645081,-500.0,0.00021246,2]
[389064098,1759572645091,-500.0,0.00021246,2]
[389064100,1759572645099,-551.68451343,0.00021246,2]
[389064102,1759572645108,-500.0,0.00021246,2]
[389064104,1759572645117,-500.0,0.00021246,2]
[389064106,1759572645127,-519.9,0.00021246,2]
[389064108,1759572645136,-500.0,0.00021246,2]
[389064110,1759572645145,-468.94397043,0.00021246,2]
[389064112,1759572645154,-500.0,0.00021246,2]
[389064114,1759572645163,-500.0,0.00021249,2]
[389064116,1759572645172,-500.0,0.00021249,2]
[389064118,1759572645182,-535.42,0.00021249,2]
[389064120,1759572645191,-500.0,0.00021249,2]
[389064122,1759572645200,-796.83,0.00021249,2]
[389064124,1759572645209,-500.0,0.00021249,2]
[389064126,1759572645220,-1360.05,0.00021249,2]
[389064128,1759572645229,-1346.5,0.00021249,2]
[389064130,1759572645238,-791.47,0.00021249,2]
[389064132,1759572645248,-151.0,0.00021249,2]
[389064134,1759572645258,-151.0,0.00021249,2]
[389064136,1759572645268,-5530.68,0.00021249,2]
[389064138,1759572645278,-500.0,0.00021249,2]
[389064140,1759572645287,-151.0,0.00021249,2]
[389064143,1759572645297,-151.0,0.00021249,2]
[389064145,1759572645309,-151.0,0.00021249,2]
[389064147,1759572645318,-700.97,0.00021249,2]
[389064149,1759572645327,-500.0,0.00021249,2]
[389064151,1759572645337,-500.0,0.00021249,2]
[389064153,1759572645346,-500.0,0.00021249,2]
[389064155,1759572645355,-631.56,0.00021249,2]
[389064157,1759572645366,-5244.64,0.00021249,2]
[389064159,1759572645376,-1910.98,0.00021249,2]
[389064161,1759572645385,-500.0,0.00021257,2]
[389064163,1759572645395,-351.20955115,0.00021257,2]
[389064165,1759572645404,-500.0,0.00021257,2]
[389064167,1759572645413,-500.0,0.00021257,2]
[389064169,1759572645423,-501.03166712,0.00021257,2]
[389064171,1759572645432,-500.0,0.00021257,2]
[389064173,1759572645444,-500.0,0.00021257,2]
[389064175,1759572645453,-500.0,0.00021257,2]
[389064177,1759572645463,-500.0,0.00021259,2]
[389064179,1759572645473,-500.0,0.00021259,2]
[389064182,1759572645483,-515.87,0.00021259,2]
[389064184,1759572645493,-500.0,0.00021259,2]
[389064186,1759572645503,-500.0,0.00021259,2]
[389064188,1759572645513,-694.84,0.00021259,2]
[389064190,1759572645523,-957.94,0.00021259,2]
[389064192,1759572645533,-500.0,0.00021259,2]
[389064194,1759572645542,-500.0,0.00021259,2]
[389064197,1759572645552,-500.0,0.00021259,2]
[389064199,1759572645562,-2332.25,0.00021259,2]
[389064201,1759572645572,-1833.47,0.00021259,2]
[389064203,1759572645581,-1270.8,0.00021259,2]
[389064205,1759572645590,-1525.79,0.00021259,2]
[389064207,1759572645600,-1426.79,0.00021259,2]
[389064209,1759572645609,-619.94,0.00021259,2]
[389064211,1759572645619,-1687.91,0.00021259,2]
[389064213,1759572645629,-500.0,0.00021259,2]
[389064215,1759572645638,-3694.94,0.00021259,2]
[389064217,1759572645647,-500.0,0.00021259,2]
[389064220,1759572645658,-500.0,0.00021259,2]
[389064224,1759572645668,-680.47,0.00021259,2]
[389064226,1759572645679,-1080.89,0.00021259,2]
[389064230,1759572645688,-500.0,0.00021259,2]
[389064232,1759572645698,-1846.84,0.00021259,2]
[389064235,1759572645707,-1838.76,0.00021259,2]
[389064237,1759572645716,-3125.42,0.00021259,2]
[389064240,1759572645726,-1566.07,0.00021259,2]
[389064243,1759572645737,-500.0,0.00021259,2]
[389064246,1759572645746,-500.0,0.00021259,2]
[389064248,1759572645756,-1121.82,0.00021259,2]
[389064251,1759572645765,-2989.68,0.00021259,2]
[389064253,1759572645775,-728.49,0.00021259,2]
[389064256,1759572645784,-500.0,0.0002126,2]
[389064259,1759572645794,-500.0,0.0002126,2]
[389064261,1759572645804,-540.42,0.0002126,2]
[389064264,1759572645813,-646.97,0.0002126,2]
[389064268,1759572645826,-500.0,0.0002126,2]
[389064270,1759572645836,-500.0,0.0002126,2]
[389064273,1759572645845,-500.0,0.0002126,2]
[389064276,1759572645855,-500.0,0.0002126,2]
[389064278,1759572645864,-821.59,0.0002126,2]
[389064281,1759572645874,-500.0,0.0002126,2]
[389064284,1759572645884,-500.0,0.0002126,2]
[389064286,1759572645893,-452.77920076,0.0002126,2]
[389064289,1759572645903,-509.27,0.0002126,2]
[389064292,1759572645912,-423.7328509,0.0002126,2]
[389064294,1759572645921,-500.0,0.0002126,2]
[389064296,1759572645931,-500.0,0.0002126,2]
[389064298,1759572645940,-500.0,0.0002126,2]
[389064300,1759572645949,-500.0,0.0002126,2]
[389064302,1759572645958,-570.41288824,0.0002126,2]
[389064304,1759572645967,-500.0,0.0002126,2]
[389064306,1759572645977,-519.4,0.0002126,2]
[389064308,1759572645986,-538.37,0.0002126,2]
[389064310,1759572645995,-500.0,0.0002126,2]
[389064312,1759572646005,-500.0,0.0002126,2]
[389064314,1759572646015,-619.66,0.0002126,2]
[389064316,1759572646024,-500.0,0.0002126,2]
[389064318,1759572646034,-500.0,0.0002126,2]
[389064321,1759572646044,-646.46,0.0002126,2]
[389064323,1759572646054,-500.0,0.0002126,2]
[389064325,1759572646063,-874.99,0.0002126,2]